Department family,Entity,Date,Expense Type,Expense area,Supplier,Transaction number,AP Amount (�)
Department of Health,NHS Rotherham CCG,31/07/2019,Hcare Srv Rec Fdtn Trust-Contract Baseline,ACUTE COMMISSIONING,BARNSLEY HOSPITAL NHS FOUNDATION TRUST,28062762,"149,100.00"
Department of Health,NHS Rotherham CCG,31/07/2019,Clinical&Medical-Commercial Sector,ACUTE COMMISSIONING,BMI HEALTHCARE LTD,27983201,"25,613.94"
Department of Health,NHS Rotherham CCG,31/07/2019,NHS Recbles <1Yr- CHC Risk Pool Con,BALANCE SHEET,CARE COSTS LTD,28226434,"52,431.93"
Department of Health,NHS Rotherham CCG,31/07/2019,Clinical&Medical-Commercial Sector,ACUTE COMMISSIONING,CARE UK CLINICAL SERVICES LTD,27983288,"49,555.00"
Department of Health,NHS Rotherham CCG,30/06/2019,Hcare Srv Rec Fdtn Trust-Contract Baseline,ACUTE COMMISSIONING,CHESTERFIELD ROYAL HOSPITAL NHS FOUNDATION TRUST,27842876,"39,821.00"
Department of Health,NHS Rotherham CCG,31/07/2019,Clinical&Medical-Commercial Sector,ACUTE COMMISSIONING,CLAREMONT HOSPITAL,28050844,"33,708.00"
Department of Health,NHS Rotherham CCG,31/07/2019,Clinical&Medical-Commercial Sector,ACUTE COMMISSIONING,CLAREMONT HOSPITAL,28087365,"45,643.00"
Department of Health,NHS Rotherham CCG,31/07/2019,Clinical&Medical-Commercial Sector,ACUTE COMMISSIONING,CLAREMONT HOSPITAL,28087513,"47,408.00"
Department of Health,NHS Rotherham CCG,31/07/2019,C&M-APMS DES Extended Hours Access,PRC DELEGATED CO-COMMISSIONING,CONNECT HEALTHCARE ROTHERHAM LTD,28185567,"19,012.11"
Department of Health,NHS Rotherham CCG,31/07/2019,C&M-APMS PCN DES Clinical Director,PRC DELEGATED CO-COMMISSIONING,CONNECT HEALTHCARE ROTHERHAM LTD,28185567,"8,882.71"
Department of Health,NHS Rotherham CCG,31/07/2019,C&M-APMS PCN DES PCN support,LOCAL ENHANCED SERVICES,CONNECT HEALTHCARE ROTHERHAM LTD,28185567,"77,918.18"
Department of Health,NHS Rotherham CCG,31/07/2019,Clinical&Medical-Voluntary Sector,COMMISSIONING - NON ACUTE,CROSSROADS CARE ROTHERHAM,28209033,"41,941.00"
Department of Health,NHS Rotherham CCG,31/07/2019,Clinical&Medical-Voluntary Sector,PROGRAMME PROJECTS,CROSSROADS CARE ROTHERHAM,28226455,"57,463.00"
Department of Health,NHS Rotherham CCG,31/07/2019,Clinical&Medical-Voluntary Sector,PROGRAMME PROJECTS,CROSSROADS CARE ROTHERHAM,28226468,"61,278.00"
Department of Health,NHS Rotherham CCG,31/07/2019,Clinical&Medical-Commercial Sector,MENTAL HEALTH CONTRACTS,CYGNET HEALTH CARE LTD,28208997,"30,547.25"
Department of Health,NHS Rotherham CCG,30/06/2019,Hcare Srv Rec Fdtn Trust-Contract Baseline,ACUTE COMMISSIONING,DONCASTER AND BASSETLAW HOSPITALS NHS FOUNDATION TRUST,27890429,"-244,313.00"
Department of Health,NHS Rotherham CCG,30/06/2019,Hcare Srv Rec Fdtn Trust-Contract Baseline,ACUTE COMMISSIONING,DONCASTER AND BASSETLAW HOSPITALS NHS FOUNDATION TRUST,27890442,"809,381.00"
Department of Health,NHS Rotherham CCG,31/07/2019,C&M-PMS Contract Value,PRC DELEGATED CO-COMMISSIONING,NHS ROTHERHAM CCG GP PRACTICE,28019850,"38,500.36"
Department of Health,NHS Rotherham CCG,31/07/2019,C&M-PMS Out of Hours Opt Outs,PRC DELEGATED CO-COMMISSIONING,NHS ROTHERHAM CCG GP PRACTICE,28019850,5.04
Department of Health,NHS Rotherham CCG,31/07/2019,C&M-PMS PCN DES Participation,PRC DELEGATED CO-COMMISSIONING,NHS ROTHERHAM CCG GP PRACTICE,28019850,"2,199.45"
Department of Health,NHS Rotherham CCG,31/07/2019,C&M-PMS Prem Healthcentre Rent,PRC DELEGATED CO-COMMISSIONING,NHS ROTHERHAM CCG GP PRACTICE,28019850,996.69
Department of Health,NHS Rotherham CCG,31/07/2019,C&M-PMS Prem Notional Rent,PRC DELEGATED CO-COMMISSIONING,NHS ROTHERHAM CCG GP PRACTICE,28019850,"2,833.33"
Department of Health,NHS Rotherham CCG,31/07/2019,C&M-PMS Prem Rates,PRC DELEGATED CO-COMMISSIONING,NHS ROTHERHAM CCG GP PRACTICE,28019850,662
Department of Health,NHS Rotherham CCG,31/07/2019,C&M-PMS QOF Aspiration,PRC DELEGATED CO-COMMISSIONING,NHS ROTHERHAM CCG GP PRACTICE,28019850,"3,168.86"
Department of Health,NHS Rotherham CCG,31/07/2019,C&M-PMS Contract Value,PRC DELEGATED CO-COMMISSIONING,NHS ROTHERHAM CCG GP PRACTICE,28019848,"99,289.78"
Department of Health,NHS Rotherham CCG,31/07/2019,C&M-PMS PCN DES Participation,PRC DELEGATED CO-COMMISSIONING,NHS ROTHERHAM CCG GP PRACTICE,28019848,"5,661.54"
Department of Health,NHS Rotherham CCG,31/07/2019,C&M-PMS PCO Other,PRC DELEGATED CO-COMMISSIONING,NHS ROTHERHAM CCG GP PRACTICE,28019848,719.8
Department of Health,NHS Rotherham CCG,31/07/2019,C&M-PMS Prem Notional Rent,PRC DELEGATED CO-COMMISSIONING,NHS ROTHERHAM CCG GP PRACTICE,28019848,"7,331.33"
Department of Health,NHS Rotherham CCG,31/07/2019,C&M-PMS Prem Rates,PRC DELEGATED CO-COMMISSIONING,NHS ROTHERHAM CCG GP PRACTICE,28019848,"2,492.00"
Department of Health,NHS Rotherham CCG,31/07/2019,C&M-PMS QOF Aspiration,PRC DELEGATED CO-COMMISSIONING,NHS ROTHERHAM CCG GP PRACTICE,28019848,"10,425.94"
Department of Health,NHS Rotherham CCG,31/07/2019,C&M-PMS Contract Value,PRC DELEGATED CO-COMMISSIONING,NHS ROTHERHAM CCG GP PRACTICE,28019852,"93,657.00"
Department of Health,NHS Rotherham CCG,31/07/2019,C&M-PMS Out of Hours Opt Outs,PRC DELEGATED CO-COMMISSIONING,NHS ROTHERHAM CCG GP PRACTICE,28019852,1.17
Department of Health,NHS Rotherham CCG,31/07/2019,C&M-PMS PCN DES Participation,PRC DELEGATED CO-COMMISSIONING,NHS ROTHERHAM CCG GP PRACTICE,28019852,"5,335.05"
Department of Health,NHS Rotherham CCG,31/07/2019,C&M-PMS Prem Notional Rent,PRC DELEGATED CO-COMMISSIONING,NHS ROTHERHAM CCG GP PRACTICE,28019852,"25,397.75"
Department of Health,NHS Rotherham CCG,31/07/2019,C&M-PMS QOF Aspiration,PRC DELEGATED CO-COMMISSIONING,NHS ROTHERHAM CCG GP PRACTICE,28019852,"8,615.94"
Department of Health,NHS Rotherham CCG,31/07/2019,C&M-GMS Global Sum,PRC DELEGATED CO-COMMISSIONING,NHS ROTHERHAM CCG GP PRACTICE,28252274,"46,206.20"
Department of Health,NHS Rotherham CCG,31/07/2019,C&M-GMS MPIG Correction Factor,PRC DELEGATED CO-COMMISSIONING,NHS ROTHERHAM CCG GP PRACTICE,28252274,61.7
Department of Health,NHS Rotherham CCG,31/07/2019,C&M-GMS PCN DES Participation,PRC DELEGATED CO-COMMISSIONING,NHS ROTHERHAM CCG GP PRACTICE,28252274,"2,867.37"
Department of Health,NHS Rotherham CCG,31/07/2019,C&M-GMS Prem Notional Rent,PRC DELEGATED CO-COMMISSIONING,NHS ROTHERHAM CCG GP PRACTICE,28252274,"2,991.67"
Department of Health,NHS Rotherham CCG,31/07/2019,C&M-GMS Prem Rates,PRC DELEGATED CO-COMMISSIONING,NHS ROTHERHAM CCG GP PRACTICE,28252274,355.32
Department of Health,NHS Rotherham CCG,31/07/2019,C&M-GMS Prem Water Rates,PRC DELEGATED CO-COMMISSIONING,NHS ROTHERHAM CCG GP PRACTICE,28252274,281.63
Department of Health,NHS Rotherham CCG,31/07/2019,C&M-GMS QOF Aspiration,PRC DELEGATED CO-COMMISSIONING,NHS ROTHERHAM CCG GP PRACTICE,28252274,"5,424.35"
Department of Health,NHS Rotherham CCG,31/07/2019,C&M-PMS Contract Value,PRC DELEGATED CO-COMMISSIONING,NHS ROTHERHAM CCG GP PRACTICE,28019857,"111,664.47"
Department of Health,NHS Rotherham CCG,31/07/2019,C&M-PMS Out of Hours Opt Outs,PRC DELEGATED CO-COMMISSIONING,NHS ROTHERHAM CCG GP PRACTICE,28019857,21.2
Department of Health,NHS Rotherham CCG,31/07/2019,C&M-PMS PCN DES Participation,PRC DELEGATED CO-COMMISSIONING,NHS ROTHERHAM CCG GP PRACTICE,28019857,"6,366.84"
Department of Health,NHS Rotherham CCG,31/07/2019,C&M-PMS PCO Locum Adop/Pat/Mat,PRC DELEGATED CO-COMMISSIONING,NHS ROTHERHAM CCG GP PRACTICE,28019857,"8,466.08"
Department of Health,NHS Rotherham CCG,31/07/2019,C&M-PMS Prem Healthcentre Rent,PRC DELEGATED CO-COMMISSIONING,NHS ROTHERHAM CCG GP PRACTICE,28019857,"1,785.74"
Department of Health,NHS Rotherham CCG,31/07/2019,C&M-PMS QOF Aspiration,PRC DELEGATED CO-COMMISSIONING,NHS ROTHERHAM CCG GP PRACTICE,28019857,"9,254.42"
Department of Health,NHS Rotherham CCG,31/07/2019,ME-PMS GP Pension EEs Adjs - PMS,PRC DELEGATED CO-COMMISSIONING,NHS ROTHERHAM CCG GP PRACTICE,28019857,437.84
Department of Health,NHS Rotherham CCG,31/07/2019,ME-PMS GP Pension ERs Adjs - PMS,PRC DELEGATED CO-COMMISSIONING,NHS ROTHERHAM CCG GP PRACTICE,28019857,287.6
Department of Health,NHS Rotherham CCG,31/07/2019,C&M-GMS Global Sum,PRC DELEGATED CO-COMMISSIONING,NHS ROTHERHAM CCG GP PRACTICE,28252276,"88,570.49"
Department of Health,NHS Rotherham CCG,31/07/2019,C&M-GMS MPIG Correction Factor,PRC DELEGATED CO-COMMISSIONING,NHS ROTHERHAM CCG GP PRACTICE,28252276,"1,286.10"
Department of Health,NHS Rotherham CCG,31/07/2019,C&M-GMS PCN DES Participation,PRC DELEGATED CO-COMMISSIONING,NHS ROTHERHAM CCG GP PRACTICE,28252276,"5,441.64"
Department of Health,NHS Rotherham CCG,31/07/2019,C&M-GMS Prem Notional Rent,PRC DELEGATED CO-COMMISSIONING,NHS ROTHERHAM CCG GP PRACTICE,28252276,"7,413.75"
Department of Health,NHS Rotherham CCG,31/07/2019,C&M-GMS Prem Rates,PRC DELEGATED CO-COMMISSIONING,NHS ROTHERHAM CCG GP PRACTICE,28252276,"9,820.00"
Department of Health,NHS Rotherham CCG,31/07/2019,C&M-GMS QOF Aspiration,PRC DELEGATED CO-COMMISSIONING,NHS ROTHERHAM CCG GP PRACTICE,28252276,"9,939.77"
Department of Health,NHS Rotherham CCG,31/07/2019,C&M-PMS Contract Value,PRC DELEGATED CO-COMMISSIONING,NHS ROTHERHAM CCG GP PRACTICE,28019854,-103.31
Department of Health,NHS Rotherham CCG,31/07/2019,C&M-PMS GP Statutory Levy,PRC DELEGATED CO-COMMISSIONING,NHS ROTHERHAM CCG GP PRACTICE,28019854,-587.21
Department of Health,NHS Rotherham CCG,31/07/2019,C&M-PMS Out of Hours Opt Outs,PRC DELEGATED CO-COMMISSIONING,NHS ROTHERHAM CCG GP PRACTICE,28019854,"-8,034.00"
Department of Health,NHS Rotherham CCG,31/07/2019,C&M-PMS Voluntary Levy,PRC DELEGATED CO-COMMISSIONING,NHS ROTHERHAM CCG GP PRACTICE,28019854,-86.35
Department of Health,NHS Rotherham CCG,31/07/2019,ME - PMS TPS Added Years Adj EEs,PRC DELEGATED CO-COMMISSIONING,NHS ROTHERHAM CCG GP PRACTICE,28019854,-720
Department of Health,NHS Rotherham CCG,31/07/2019,ME-PMS GP Pension EEs-PMS,PRC DELEGATED CO-COMMISSIONING,NHS ROTHERHAM CCG GP PRACTICE,28019854,"-8,783.55"
Department of Health,NHS Rotherham CCG,31/07/2019,ME-PMS GP Pension ERs Adjs - PMS,PRC DELEGATED CO-COMMISSIONING,NHS ROTHERHAM CCG GP PRACTICE,28019854,"-9,233.16"
Department of Health,NHS Rotherham CCG,31/07/2019,C&M-PMS Contract Value,PRC DELEGATED CO-COMMISSIONING,NHS ROTHERHAM CCG GP PRACTICE,28019855,"171,877.29"
Department of Health,NHS Rotherham CCG,31/07/2019,C&M-PMS Out of Hours Opt Outs,PRC DELEGATED CO-COMMISSIONING,NHS ROTHERHAM CCG GP PRACTICE,28019855,4.86
Department of Health,NHS Rotherham CCG,31/07/2019,C&M-PMS PCN DES Participation,PRC DELEGATED CO-COMMISSIONING,NHS ROTHERHAM CCG GP PRACTICE,28019855,"9,802.26"
Department of Health,NHS Rotherham CCG,31/07/2019,C&M-PMS Prem Actual Rent,PRC DELEGATED CO-COMMISSIONING,NHS ROTHERHAM CCG GP PRACTICE,28019855,"12,510.33"
Department of Health,NHS Rotherham CCG,31/07/2019,C&M-PMS Prem Notional Rent,PRC DELEGATED CO-COMMISSIONING,NHS ROTHERHAM CCG GP PRACTICE,28019855,"7,477.08"
Department of Health,NHS Rotherham CCG,31/07/2019,C&M-PMS Prem Rates,PRC DELEGATED CO-COMMISSIONING,NHS ROTHERHAM CCG GP PRACTICE,28019855,"4,907.00"
Department of Health,NHS Rotherham CCG,31/07/2019,C&M-PMS QOF Aspiration,PRC DELEGATED CO-COMMISSIONING,NHS ROTHERHAM CCG GP PRACTICE,28019855,"19,545.78"
Department of Health,NHS Rotherham CCG,31/07/2019,C&M-PMS Cost of Drugs -Dispensing,LOCAL ENHANCED SERVICES,NHS ROTHERHAM CCG GP PRACTICE,28274265,"-25,734.48"
Department of Health,NHS Rotherham CCG,31/07/2019,C&M-PMS Prsc Chrgs Cll&Rmttd by GPs,PRC DELEGATED CO-COMMISSIONING,NHS ROTHERHAM CCG GP PRACTICE,28274265,-729
Department of Health,NHS Rotherham CCG,31/07/2019,C&M-PMS Cost of Drugs -Dispensing,LOCAL ENHANCED SERVICES,NHS ROTHERHAM CCG GP PRACTICE,28274266,"54,121.17"
Department of Health,NHS Rotherham CCG,31/07/2019,C&M-PMS Prof fees Dispensing,PRC DELEGATED CO-COMMISSIONING,NHS ROTHERHAM CCG GP PRACTICE,28274266,"8,687.65"
Department of Health,NHS Rotherham CCG,31/07/2019,C&M-PMS Prsc Chrgs Cll&Rmttd by GPs,LOCAL ENHANCED SERVICES,NHS ROTHERHAM CCG GP PRACTICE,28274266,729
Department of Health,NHS Rotherham CCG,31/07/2019,C&M-PMS Contract Value,PRC DELEGATED CO-COMMISSIONING,NHS ROTHERHAM CCG GP PRACTICE,28039387,"96,205.28"
Department of Health,NHS Rotherham CCG,31/07/2019,C&M-PMS DES Extended Hours Access,PRC DELEGATED CO-COMMISSIONING,NHS ROTHERHAM CCG GP PRACTICE,28039387,"6,938.02"
Department of Health,NHS Rotherham CCG,31/07/2019,C&M-PMS Dispensing Quality Sch,PRC DELEGATED CO-COMMISSIONING,NHS ROTHERHAM CCG GP PRACTICE,28039387,"6,140.40"
Department of Health,NHS Rotherham CCG,31/07/2019,C&M-PMS PCN DES Clinical Director,PRC DELEGATED CO-COMMISSIONING,NHS ROTHERHAM CCG GP PRACTICE,28039387,"3,241.53"
Department of Health,NHS Rotherham CCG,31/07/2019,C&M-PMS PCN DES PCN support,LOCAL ENHANCED SERVICES,NHS ROTHERHAM CCG GP PRACTICE,28039387,"28,434.46"
Department of Health,NHS Rotherham CCG,31/07/2019,C&M-PMS PCN DES Participation,PRC DELEGATED CO-COMMISSIONING,NHS ROTHERHAM CCG GP PRACTICE,28039387,"5,492.82"
Department of Health,NHS Rotherham CCG,31/07/2019,C&M-PMS Prem Notional Rent,PRC DELEGATED CO-COMMISSIONING,NHS ROTHERHAM CCG GP PRACTICE,28039387,"14,528.58"
Department of Health,NHS Rotherham CCG,31/07/2019,C&M-PMS Prem Rates,PRC DELEGATED CO-COMMISSIONING,NHS ROTHERHAM CCG GP PRACTICE,28039387,"3,103.00"
Department of Health,NHS Rotherham CCG,31/07/2019,C&M-PMS QOF Aspiration,PRC DELEGATED CO-COMMISSIONING,NHS ROTHERHAM CCG GP PRACTICE,28039387,"10,795.81"
Department of Health,NHS Rotherham CCG,31/07/2019,C&M-PMS Cost of Drugs -Dispensing,LOCAL ENHANCED SERVICES,NHS ROTHERHAM CCG GP PRACTICE,28274263,"-31,810.00"
Department of Health,NHS Rotherham CCG,31/07/2019,C&M-PMS Prsc Chrgs Cll&Rmttd by GPs,PRC DELEGATED CO-COMMISSIONING,NHS ROTHERHAM CCG GP PRACTICE,28274263,"-1,332.00"
Department of Health,NHS Rotherham CCG,31/07/2019,C&M-PMS Cost of Drugs -Dispensing,LOCAL ENHANCED SERVICES,NHS ROTHERHAM CCG GP PRACTICE,28274264,"55,867.37"
Department of Health,NHS Rotherham CCG,31/07/2019,C&M-PMS Prof fees Dispensing,PRC DELEGATED CO-COMMISSIONING,NHS ROTHERHAM CCG GP PRACTICE,28274264,"11,908.89"
Department of Health,NHS Rotherham CCG,31/07/2019,C&M-PMS Prsc Chrgs Cll&Rmttd by GPs,LOCAL ENHANCED SERVICES,NHS ROTHERHAM CCG GP PRACTICE,28274264,"1,332.00"
Department of Health,NHS Rotherham CCG,31/07/2019,C&M-GMS Global Sum,PRC DELEGATED CO-COMMISSIONING,NHS ROTHERHAM CCG GP PRACTICE,28252278,"89,546.34"
Department of Health,NHS Rotherham CCG,31/07/2019,C&M-GMS MPIG Correction Factor,PRC DELEGATED CO-COMMISSIONING,NHS ROTHERHAM CCG GP PRACTICE,28252278,"1,086.44"
Department of Health,NHS Rotherham CCG,31/07/2019,C&M-GMS PCN DES Participation,PRC DELEGATED CO-COMMISSIONING,NHS ROTHERHAM CCG GP PRACTICE,28252278,"5,473.44"
Department of Health,NHS Rotherham CCG,31/07/2019,C&M-GMS Prem Cost Rent,PRC DELEGATED CO-COMMISSIONING,NHS ROTHERHAM CCG GP PRACTICE,28252278,762.92
Department of Health,NHS Rotherham CCG,31/07/2019,C&M-GMS Prem Notional Rent,PRC DELEGATED CO-COMMISSIONING,NHS ROTHERHAM CCG GP PRACTICE,28252278,"9,116.66"
Department of Health,NHS Rotherham CCG,31/07/2019,C&M-GMS Prem Rates,PRC DELEGATED CO-COMMISSIONING,NHS ROTHERHAM CCG GP PRACTICE,28252278,"1,687.12"
Department of Health,NHS Rotherham CCG,31/07/2019,C&M-GMS Prem Water Rates,PRC DELEGATED CO-COMMISSIONING,NHS ROTHERHAM CCG GP PRACTICE,28252278,363.08
Department of Health,NHS Rotherham CCG,31/07/2019,C&M-GMS QOF Aspiration,PRC DELEGATED CO-COMMISSIONING,NHS ROTHERHAM CCG GP PRACTICE,28252278,"9,272.29"
Department of Health,NHS Rotherham CCG,31/07/2019,C&M-GMS Cost of Drugs -Dispensing,LOCAL ENHANCED SERVICES,NHS ROTHERHAM CCG GP PRACTICE,28274271,"23,182.94"
Department of Health,NHS Rotherham CCG,31/07/2019,C&M-GMS Prof Fees Dispensing,PRC DELEGATED CO-COMMISSIONING,NHS ROTHERHAM CCG GP PRACTICE,28274271,"3,284.28"
Department of Health,NHS Rotherham CCG,31/07/2019,C&M-GMS PrscrptnChrgsColl&RmttdbyGP,LOCAL ENHANCED SERVICES,NHS ROTHERHAM CCG GP PRACTICE,28274271,387
Department of Health,NHS Rotherham CCG,31/07/2019,C&M-PMS Contract Value,PRC DELEGATED CO-COMMISSIONING,NHS ROTHERHAM CCG GP PRACTICE,28019860,"108,361.90"
Department of Health,NHS Rotherham CCG,31/07/2019,C&M-PMS Out of Hours Opt Outs,PRC DELEGATED CO-COMMISSIONING,NHS ROTHERHAM CCG GP PRACTICE,28019860,5.35
Department of Health,NHS Rotherham CCG,31/07/2019,C&M-PMS PCN DES Participation,PRC DELEGATED CO-COMMISSIONING,NHS ROTHERHAM CCG GP PRACTICE,28019860,"6,192.36"
Department of Health,NHS Rotherham CCG,31/07/2019,C&M-PMS Prem Notional Rent,PRC DELEGATED CO-COMMISSIONING,NHS ROTHERHAM CCG GP PRACTICE,28019860,"9,300.00"
Department of Health,NHS Rotherham CCG,31/07/2019,C&M-PMS QOF Aspiration,PRC DELEGATED CO-COMMISSIONING,NHS ROTHERHAM CCG GP PRACTICE,28019860,"11,066.87"
Department of Health,NHS Rotherham CCG,31/07/2019,C&M-PMS Contract Value,PRC DELEGATED CO-COMMISSIONING,NHS ROTHERHAM CCG GP PRACTICE,28019858,-192.11
Department of Health,NHS Rotherham CCG,31/07/2019,C&M-PMS GP Statutory Levy,PRC DELEGATED CO-COMMISSIONING,NHS ROTHERHAM CCG GP PRACTICE,28019858,-498.92
Department of Health,NHS Rotherham CCG,31/07/2019,C&M-PMS Out of Hours Opt Outs,PRC DELEGATED CO-COMMISSIONING,NHS ROTHERHAM CCG GP PRACTICE,28019858,"-7,115.08"
Department of Health,NHS Rotherham CCG,31/07/2019,C&M-PMS Voluntary Levy,PRC DELEGATED CO-COMMISSIONING,NHS ROTHERHAM CCG GP PRACTICE,28019858,-73.37
Department of Health,NHS Rotherham CCG,31/07/2019,ME - PMS TPS Added Years Adj EEs,PRC DELEGATED CO-COMMISSIONING,NHS ROTHERHAM CCG GP PRACTICE,28019858,-176.27
Department of Health,NHS Rotherham CCG,31/07/2019,ME-PMS GP Pension EEs-PMS,PRC DELEGATED CO-COMMISSIONING,NHS ROTHERHAM CCG GP PRACTICE,28019858,"-9,237.87"
Department of Health,NHS Rotherham CCG,31/07/2019,ME-PMS GP Pension ERs Adjs - PMS,PRC DELEGATED CO-COMMISSIONING,NHS ROTHERHAM CCG GP PRACTICE,28019858,"-9,999.71"
Department of Health,NHS Rotherham CCG,31/07/2019,C&M-PMS Contract Value,PRC DELEGATED CO-COMMISSIONING,NHS ROTHERHAM CCG GP PRACTICE,28039388,"152,512.72"
Department of Health,NHS Rotherham CCG,31/07/2019,C&M-PMS DES Extended Hours Access,PRC DELEGATED CO-COMMISSIONING,NHS ROTHERHAM CCG GP PRACTICE,28039388,"6,289.71"
Department of Health,NHS Rotherham CCG,31/07/2019,C&M-PMS Out of Hours Opt Outs,PRC DELEGATED CO-COMMISSIONING,NHS ROTHERHAM CCG GP PRACTICE,28039388,9.01
Department of Health,NHS Rotherham CCG,31/07/2019,C&M-PMS PCN DES Clinical Director,PRC DELEGATED CO-COMMISSIONING,NHS ROTHERHAM CCG GP PRACTICE,28039388,"2,938.64"
Department of Health,NHS Rotherham CCG,31/07/2019,C&M-PMS PCN DES PCN support,LOCAL ENHANCED SERVICES,NHS ROTHERHAM CCG GP PRACTICE,28039388,"25,777.46"
Department of Health,NHS Rotherham CCG,31/07/2019,C&M-PMS PCN DES Participation,PRC DELEGATED CO-COMMISSIONING,NHS ROTHERHAM CCG GP PRACTICE,28039388,"8,681.10"
Department of Health,NHS Rotherham CCG,31/07/2019,C&M-PMS PCO Other,PRC DELEGATED CO-COMMISSIONING,NHS ROTHERHAM CCG GP PRACTICE,28039388,"1,049.90"
Department of Health,NHS Rotherham CCG,31/07/2019,C&M-PMS Prem Actual Rent,PRC DELEGATED CO-COMMISSIONING,NHS ROTHERHAM CCG GP PRACTICE,28039388,550
Department of Health,NHS Rotherham CCG,31/07/2019,C&M-PMS Prem Healthcentre Rent,PRC DELEGATED CO-COMMISSIONING,NHS ROTHERHAM CCG GP PRACTICE,28039388,542.41
Department of Health,NHS Rotherham CCG,31/07/2019,C&M-PMS Prem Notional Rent,PRC DELEGATED CO-COMMISSIONING,NHS ROTHERHAM CCG GP PRACTICE,28039388,"21,023.33"
Department of Health,NHS Rotherham CCG,31/07/2019,C&M-PMS Prem Rates,PRC DELEGATED CO-COMMISSIONING,NHS ROTHERHAM CCG GP PRACTICE,28039388,"6,663.00"
Department of Health,NHS Rotherham CCG,31/07/2019,C&M-PMS QOF Aspiration,PRC DELEGATED CO-COMMISSIONING,NHS ROTHERHAM CCG GP PRACTICE,28039388,"14,780.00"
Department of Health,NHS Rotherham CCG,31/07/2019,C&M-PMS Contract Value,PRC DELEGATED CO-COMMISSIONING,NHS ROTHERHAM CCG GP PRACTICE,28019884,"57,576.71"
Department of Health,NHS Rotherham CCG,31/07/2019,C&M-PMS Out of Hours Opt Outs,PRC DELEGATED CO-COMMISSIONING,NHS ROTHERHAM CCG GP PRACTICE,28019884,10.09
Department of Health,NHS Rotherham CCG,31/07/2019,C&M-PMS PCN DES Participation,PRC DELEGATED CO-COMMISSIONING,NHS ROTHERHAM CCG GP PRACTICE,28019884,"3,284.70"
Department of Health,NHS Rotherham CCG,31/07/2019,C&M-PMS Prem Healthcentre Rent,PRC DELEGATED CO-COMMISSIONING,NHS ROTHERHAM CCG GP PRACTICE,28019884,"4,076.08"
Department of Health,NHS Rotherham CCG,31/07/2019,C&M-PMS QOF Aspiration,PRC DELEGATED CO-COMMISSIONING,NHS ROTHERHAM CCG GP PRACTICE,28019884,"5,425.84"
Department of Health,NHS Rotherham CCG,31/07/2019,C&M-GMS Global Sum,PRC DELEGATED CO-COMMISSIONING,NHS ROTHERHAM CCG GP PRACTICE,28254827,"27,311.61"
Department of Health,NHS Rotherham CCG,31/07/2019,C&M-GMS MPIG Correction Factor,PRC DELEGATED CO-COMMISSIONING,NHS ROTHERHAM CCG GP PRACTICE,28254827,44.99
Department of Health,NHS Rotherham CCG,31/07/2019,C&M-GMS PCN DES Participation,PRC DELEGATED CO-COMMISSIONING,NHS ROTHERHAM CCG GP PRACTICE,28254827,"1,685.31"
Department of Health,NHS Rotherham CCG,31/07/2019,C&M-GMS Prem Healthcentre Rent,PRC DELEGATED CO-COMMISSIONING,NHS ROTHERHAM CCG GP PRACTICE,28254827,"2,648.21"
Department of Health,NHS Rotherham CCG,31/07/2019,C&M-GMS QOF Aspiration,PRC DELEGATED CO-COMMISSIONING,NHS ROTHERHAM CCG GP PRACTICE,28254827,"3,090.40"
Department of Health,NHS Rotherham CCG,31/07/2019,C&M-PMS Contract Value,PRC DELEGATED CO-COMMISSIONING,NHS ROTHERHAM CCG GP PRACTICE,28019864,"28,267.99"
Department of Health,NHS Rotherham CCG,31/07/2019,C&M-PMS PCN DES Participation,PRC DELEGATED CO-COMMISSIONING,NHS ROTHERHAM CCG GP PRACTICE,28019864,"1,599.69"
Department of Health,NHS Rotherham CCG,31/07/2019,C&M-PMS PCO Other,PRC DELEGATED CO-COMMISSIONING,NHS ROTHERHAM CCG GP PRACTICE,28019864,"2,463.00"
Department of Health,NHS Rotherham CCG,31/07/2019,C&M-PMS Prem Notional Rent,PRC DELEGATED CO-COMMISSIONING,NHS ROTHERHAM CCG GP PRACTICE,28019864,"3,100.00"
Department of Health,NHS Rotherham CCG,31/07/2019,C&M-PMS Prem Rates,PRC DELEGATED CO-COMMISSIONING,NHS ROTHERHAM CCG GP PRACTICE,28019864,"2,298.29"
Department of Health,NHS Rotherham CCG,31/07/2019,C&M-PMS QOF Aspiration,PRC DELEGATED CO-COMMISSIONING,NHS ROTHERHAM CCG GP PRACTICE,28019864,"2,978.58"
Department of Health,NHS Rotherham CCG,31/07/2019,C&M-PMS Contract Value,PRC DELEGATED CO-COMMISSIONING,NHS ROTHERHAM CCG GP PRACTICE,28019872,"55,384.91"
Department of Health,NHS Rotherham CCG,31/07/2019,C&M-PMS PCN DES Participation,PRC DELEGATED CO-COMMISSIONING,NHS ROTHERHAM CCG GP PRACTICE,28019872,"3,130.29"
Department of Health,NHS Rotherham CCG,31/07/2019,C&M-PMS Prem Notional Rent,PRC DELEGATED CO-COMMISSIONING,NHS ROTHERHAM CCG GP PRACTICE,28019872,"6,791.67"
Department of Health,NHS Rotherham CCG,31/07/2019,C&M-PMS QOF Aspiration,PRC DELEGATED CO-COMMISSIONING,NHS ROTHERHAM CCG GP PRACTICE,28019872,"5,291.59"
Department of Health,NHS Rotherham CCG,31/07/2019,C&M-GMS Global Sum,PRC DELEGATED CO-COMMISSIONING,NHS ROTHERHAM CCG GP PRACTICE,28252280,"73,358.84"
Department of Health,NHS Rotherham CCG,31/07/2019,C&M-GMS PCN DES Participation,PRC DELEGATED CO-COMMISSIONING,NHS ROTHERHAM CCG GP PRACTICE,28252280,"4,506.72"
Department of Health,NHS Rotherham CCG,31/07/2019,C&M-GMS Prem Notional Rent,PRC DELEGATED CO-COMMISSIONING,NHS ROTHERHAM CCG GP PRACTICE,28252280,"6,225.00"
Department of Health,NHS Rotherham CCG,31/07/2019,C&M-GMS Prem Rates,PRC DELEGATED CO-COMMISSIONING,NHS ROTHERHAM CCG GP PRACTICE,28252280,"1,074.00"
Department of Health,NHS Rotherham CCG,31/07/2019,C&M-GMS QOF Aspiration,PRC DELEGATED CO-COMMISSIONING,NHS ROTHERHAM CCG GP PRACTICE,28252280,"7,535.78"
Department of Health,NHS Rotherham CCG,31/07/2019,C&M-GMS Global Sum,PRC DELEGATED CO-COMMISSIONING,NHS ROTHERHAM CCG GP PRACTICE,28252282,"30,353.67"
Department of Health,NHS Rotherham CCG,31/07/2019,C&M-GMS PCN DES Participation,PRC DELEGATED CO-COMMISSIONING,NHS ROTHERHAM CCG GP PRACTICE,28252282,"1,887.48"
Department of Health,NHS Rotherham CCG,31/07/2019,C&M-GMS Prem Healthcentre Rent,PRC DELEGATED CO-COMMISSIONING,NHS ROTHERHAM CCG GP PRACTICE,28252282,"3,721.37"
Department of Health,NHS Rotherham CCG,31/07/2019,C&M-GMS QOF Aspiration,PRC DELEGATED CO-COMMISSIONING,NHS ROTHERHAM CCG GP PRACTICE,28252282,"2,683.09"
Department of Health,NHS Rotherham CCG,31/07/2019,C&M-PMS Contract Value,PRC DELEGATED CO-COMMISSIONING,NHS ROTHERHAM CCG GP PRACTICE,28019868,"66,860.47"
Department of Health,NHS Rotherham CCG,31/07/2019,C&M-PMS PCN DES Participation,PRC DELEGATED CO-COMMISSIONING,NHS ROTHERHAM CCG GP PRACTICE,28019868,"3,902.85"
Department of Health,NHS Rotherham CCG,31/07/2019,C&M-PMS PCO Other,PRC DELEGATED CO-COMMISSIONING,NHS ROTHERHAM CCG GP PRACTICE,28019868,503.1
Department of Health,NHS Rotherham CCG,31/07/2019,C&M-PMS Prem Notional Rent,PRC DELEGATED CO-COMMISSIONING,NHS ROTHERHAM CCG GP PRACTICE,28019868,"4,200.00"
Department of Health,NHS Rotherham CCG,31/07/2019,C&M-PMS Prem Rates,PRC DELEGATED CO-COMMISSIONING,NHS ROTHERHAM CCG GP PRACTICE,28019868,"1,338.00"
Department of Health,NHS Rotherham CCG,31/07/2019,C&M-PMS QOF Aspiration,PRC DELEGATED CO-COMMISSIONING,NHS ROTHERHAM CCG GP PRACTICE,28019868,"6,241.30"
Department of Health,NHS Rotherham CCG,31/07/2019,C&M-PMS Contract Value,PRC DELEGATED CO-COMMISSIONING,NHS ROTHERHAM CCG GP PRACTICE,28022629,"52,851.05"
Department of Health,NHS Rotherham CCG,31/07/2019,C&M-PMS Out of Hours Opt Outs,PRC DELEGATED CO-COMMISSIONING,NHS ROTHERHAM CCG GP PRACTICE,28022629,29.62
Department of Health,NHS Rotherham CCG,31/07/2019,C&M-PMS PCN DES Participation,PRC DELEGATED CO-COMMISSIONING,NHS ROTHERHAM CCG GP PRACTICE,28022629,"3,019.50"
Department of Health,NHS Rotherham CCG,31/07/2019,C&M-PMS Prem Notional Rent,PRC DELEGATED CO-COMMISSIONING,NHS ROTHERHAM CCG GP PRACTICE,28022629,"3,645.83"
Department of Health,NHS Rotherham CCG,31/07/2019,C&M-PMS Prem Rates,PRC DELEGATED CO-COMMISSIONING,NHS ROTHERHAM CCG GP PRACTICE,28022629,"1,856.57"
Department of Health,NHS Rotherham CCG,31/07/2019,C&M-PMS QOF Aspiration,PRC DELEGATED CO-COMMISSIONING,NHS ROTHERHAM CCG GP PRACTICE,28022629,"5,265.47"
Department of Health,NHS Rotherham CCG,31/07/2019,C&M-PMS Contract Value,PRC DELEGATED CO-COMMISSIONING,NHS ROTHERHAM CCG GP PRACTICE,28022631,"69,671.19"
Department of Health,NHS Rotherham CCG,31/07/2019,C&M-PMS PCN DES Participation,PRC DELEGATED CO-COMMISSIONING,NHS ROTHERHAM CCG GP PRACTICE,28022631,"3,959.73"
Department of Health,NHS Rotherham CCG,31/07/2019,C&M-PMS Prem Healthcentre Rent,PRC DELEGATED CO-COMMISSIONING,NHS ROTHERHAM CCG GP PRACTICE,28022631,523.73
Department of Health,NHS Rotherham CCG,31/07/2019,C&M-PMS Prem Notional Rent,PRC DELEGATED CO-COMMISSIONING,NHS ROTHERHAM CCG GP PRACTICE,28022631,"3,402.08"
Department of Health,NHS Rotherham CCG,31/07/2019,C&M-PMS Prem Rates,PRC DELEGATED CO-COMMISSIONING,NHS ROTHERHAM CCG GP PRACTICE,28022631,775
Department of Health,NHS Rotherham CCG,31/07/2019,C&M-PMS QOF Aspiration,PRC DELEGATED CO-COMMISSIONING,NHS ROTHERHAM CCG GP PRACTICE,28022631,"5,951.76"
Department of Health,NHS Rotherham CCG,31/07/2019,C&M-PMS Contract Value,PRC DELEGATED CO-COMMISSIONING,NHS ROTHERHAM CCG GP PRACTICE,28022627,"50,741.90"
Department of Health,NHS Rotherham CCG,31/07/2019,C&M-PMS DES Learn Dsblty Hlth Chk,PRC DELEGATED CO-COMMISSIONING,NHS ROTHERHAM CCG GP PRACTICE,28022627,"3,080.00"
Department of Health,NHS Rotherham CCG,31/07/2019,C&M-PMS PCN DES Participation,PRC DELEGATED CO-COMMISSIONING,NHS ROTHERHAM CCG GP PRACTICE,28022627,"2,886.87"
Department of Health,NHS Rotherham CCG,31/07/2019,C&M-PMS PCO Other,PRC DELEGATED CO-COMMISSIONING,NHS ROTHERHAM CCG GP PRACTICE,28022627,435.5
Department of Health,NHS Rotherham CCG,31/07/2019,C&M-PMS Prem Healthcentre Rent,PRC DELEGATED CO-COMMISSIONING,NHS ROTHERHAM CCG GP PRACTICE,28022627,"1,979.17"
Department of Health,NHS Rotherham CCG,31/07/2019,C&M-PMS QOF Aspiration,PRC DELEGATED CO-COMMISSIONING,NHS ROTHERHAM CCG GP PRACTICE,28022627,"4,116.14"
Department of Health,NHS Rotherham CCG,31/07/2019,C&M-PMS Contract Value,PRC DELEGATED CO-COMMISSIONING,NHS ROTHERHAM CCG GP PRACTICE,28019866,"47,587.92"
Department of Health,NHS Rotherham CCG,31/07/2019,C&M-PMS Out of Hours Opt Outs,PRC DELEGATED CO-COMMISSIONING,NHS ROTHERHAM CCG GP PRACTICE,28019866,9.16
Department of Health,NHS Rotherham CCG,31/07/2019,C&M-PMS PCN DES Participation,PRC DELEGATED CO-COMMISSIONING,NHS ROTHERHAM CCG GP PRACTICE,28019866,"2,717.49"
Department of Health,NHS Rotherham CCG,31/07/2019,C&M-PMS Prem Notional Rent,PRC DELEGATED CO-COMMISSIONING,NHS ROTHERHAM CCG GP PRACTICE,28019866,"7,075.50"
Department of Health,NHS Rotherham CCG,31/07/2019,C&M-PMS QOF Aspiration,PRC DELEGATED CO-COMMISSIONING,NHS ROTHERHAM CCG GP PRACTICE,28019866,"3,946.92"
Department of Health,NHS Rotherham CCG,31/07/2019,C&M-PMS Contract Value,PRC DELEGATED CO-COMMISSIONING,NHS ROTHERHAM CCG GP PRACTICE,28019874,"38,426.82"
Department of Health,NHS Rotherham CCG,31/07/2019,C&M-PMS PCN DES Participation,PRC DELEGATED CO-COMMISSIONING,NHS ROTHERHAM CCG GP PRACTICE,28019874,"2,168.73"
Department of Health,NHS Rotherham CCG,31/07/2019,C&M-PMS Prem Notional Rent,PRC DELEGATED CO-COMMISSIONING,NHS ROTHERHAM CCG GP PRACTICE,28019874,"3,204.17"
Department of Health,NHS Rotherham CCG,31/07/2019,C&M-PMS QOF Aspiration,PRC DELEGATED CO-COMMISSIONING,NHS ROTHERHAM CCG GP PRACTICE,28019874,"3,061.55"
Department of Health,NHS Rotherham CCG,31/07/2019,C&M-PMS Contract Value,PRC DELEGATED CO-COMMISSIONING,NHS ROTHERHAM CCG GP PRACTICE,28019876,"78,039.58"
Department of Health,NHS Rotherham CCG,31/07/2019,C&M-PMS PCN DES Participation,PRC DELEGATED CO-COMMISSIONING,NHS ROTHERHAM CCG GP PRACTICE,28019876,"4,471.32"
Department of Health,NHS Rotherham CCG,31/07/2019,C&M-PMS PCO Other,PRC DELEGATED CO-COMMISSIONING,NHS ROTHERHAM CCG GP PRACTICE,28019876,622.2
Department of Health,NHS Rotherham CCG,31/07/2019,C&M-PMS Prem Notional Rent,PRC DELEGATED CO-COMMISSIONING,NHS ROTHERHAM CCG GP PRACTICE,28019876,"6,512.50"
Department of Health,NHS Rotherham CCG,31/07/2019,C&M-PMS Prem Rates,PRC DELEGATED CO-COMMISSIONING,NHS ROTHERHAM CCG GP PRACTICE,28019876,"1,919.00"
Department of Health,NHS Rotherham CCG,31/07/2019,C&M-PMS QOF Aspiration,PRC DELEGATED CO-COMMISSIONING,NHS ROTHERHAM CCG GP PRACTICE,28019876,"7,577.85"
Department of Health,NHS Rotherham CCG,31/07/2019,Prescribing,MEDICINES MANAGEMENT - CLINICAL,FRESENIUS KABI LTD,27913684,"34,479.01"
Department of Health,NHS Rotherham CCG,31/07/2019,Prescribing,MEDICINES MANAGEMENT - CLINICAL,FRESENIUS KABI LTD,28062853,"30,669.47"
Department of Health,NHS Rotherham CCG,31/07/2019,C&M-APMS Contract Value,PRC DELEGATED CO-COMMISSIONING,NHS ROTHERHAM CCG GP PRACTICE,28019878,"73,942.55"
Department of Health,NHS Rotherham CCG,31/07/2019,C&M-APMS PCN DES Participation,PRC DELEGATED CO-COMMISSIONING,NHS ROTHERHAM CCG GP PRACTICE,28019878,"3,524.25"
Department of Health,NHS Rotherham CCG,31/07/2019,C&M-APMS Prem Actual Rent,PRC DELEGATED CO-COMMISSIONING,NHS ROTHERHAM CCG GP PRACTICE,28019878,"2,083.33"
Department of Health,NHS Rotherham CCG,31/07/2019,C&M-APMS Prem Healthcentre Rent,PRC DELEGATED CO-COMMISSIONING,NHS ROTHERHAM CCG GP PRACTICE,28019878,"4,500.00"
Department of Health,NHS Rotherham CCG,31/07/2019,C&M-PMS QOF Aspiration,PRC DELEGATED CO-COMMISSIONING,NHS ROTHERHAM CCG GP PRACTICE,28019878,"5,449.13"
Department of Health,NHS Rotherham CCG,31/07/2019,Apprenticeship Levy Payable,BALANCE SHEET,HMRC,28101386,609
Department of Health,NHS Rotherham CCG,31/07/2019,Income tax <1Yr,BALANCE SHEET,HMRC,28101386,"52,831.00"
Department of Health,NHS Rotherham CCG,31/07/2019,Income tax <1Yr-Student Loans,BALANCE SHEET,HMRC,28101386,254
Department of Health,NHS Rotherham CCG,31/07/2019,National Insurance < 1 yr-NI- ERS,BALANCE SHEET,HMRC,28101386,"39,195.23"
Department of Health,NHS Rotherham CCG,31/07/2019,National Insurance < 1 yr-NI-EES,BALANCE SHEET,HMRC,28101386,"30,341.57"
Department of Health,NHS Rotherham CCG,31/07/2019,LPF Management Fees,BUSINESS INFORMATICS,KIER BUSINESS SERVICES LTD,27999650,"25,282.80"
Department of Health,NHS Rotherham CCG,31/07/2019,Hcare Srv Rec NHS Trust-Contract Baseline,ACUTE COMMISSIONING,LEEDS TEACHING HOSPITALS NHS TRUST,27983142,"25,642.00"
Department of Health,NHS Rotherham CCG,31/07/2019,C&M-PMS Contract Value,PRC DELEGATED CO-COMMISSIONING,NHS ROTHERHAM CCG GP PRACTICE,28022633,"119,235.04"
Department of Health,NHS Rotherham CCG,31/07/2019,C&M-PMS PCN DES Participation,PRC DELEGATED CO-COMMISSIONING,NHS ROTHERHAM CCG GP PRACTICE,28022633,"6,816.75"
Department of Health,NHS Rotherham CCG,31/07/2019,C&M-PMS PCO Other,PRC DELEGATED CO-COMMISSIONING,NHS ROTHERHAM CCG GP PRACTICE,28022633,822.5
Department of Health,NHS Rotherham CCG,31/07/2019,C&M-PMS Prem Actual Rent,PRC DELEGATED CO-COMMISSIONING,NHS ROTHERHAM CCG GP PRACTICE,28022633,"11,987.51"
Department of Health,NHS Rotherham CCG,31/07/2019,C&M-PMS Prem Healthcentre Rent,PRC DELEGATED CO-COMMISSIONING,NHS ROTHERHAM CCG GP PRACTICE,28022633,"1,127.91"
Department of Health,NHS Rotherham CCG,31/07/2019,C&M-PMS Prem Notional Rent,PRC DELEGATED CO-COMMISSIONING,NHS ROTHERHAM CCG GP PRACTICE,28022633,"7,326.17"
Department of Health,NHS Rotherham CCG,31/07/2019,C&M-PMS Prem Rates,PRC DELEGATED CO-COMMISSIONING,NHS ROTHERHAM CCG GP PRACTICE,28022633,"4,410.00"
Department of Health,NHS Rotherham CCG,31/07/2019,C&M-PMS QOF Aspiration,PRC DELEGATED CO-COMMISSIONING,NHS ROTHERHAM CCG GP PRACTICE,28022633,"12,029.07"
Department of Health,NHS Rotherham CCG,31/07/2019,C&M-PMS Contract Value,PRC DELEGATED CO-COMMISSIONING,NHS ROTHERHAM CCG GP PRACTICE,28019882,"53,094.09"
Department of Health,NHS Rotherham CCG,31/07/2019,C&M-PMS PCN DES Participation,PRC DELEGATED CO-COMMISSIONING,NHS ROTHERHAM CCG GP PRACTICE,28019882,"3,020.85"
Department of Health,NHS Rotherham CCG,31/07/2019,C&M-PMS PCO Locum Adop/Pat/Mat,PRC DELEGATED CO-COMMISSIONING,NHS ROTHERHAM CCG GP PRACTICE,28019882,"8,007.60"
Department of Health,NHS Rotherham CCG,31/07/2019,C&M-PMS Prem Healthcentre Rent,PRC DELEGATED CO-COMMISSIONING,NHS ROTHERHAM CCG GP PRACTICE,28019882,"3,954.56"
Department of Health,NHS Rotherham CCG,31/07/2019,C&M-PMS QOF Aspiration,PRC DELEGATED CO-COMMISSIONING,NHS ROTHERHAM CCG GP PRACTICE,28019882,"5,794.69"
Department of Health,NHS Rotherham CCG,31/07/2019,Clinical&Medical-Commercial Sector,WHEELCHAIR SERVICE,MEDEQUIP ASSISTIVE TECHNOLOGY LTD,28087527,"160,653.60"
Department of Health,NHS Rotherham CCG,31/07/2019,Clinical&Medical-Commercial Sector,LEARNING DIFFICULTIES,MOORVILLE RESIDENTIAL,27900995,"99,557.80"
Department of Health,NHS Rotherham CCG,31/07/2019,Hlthcre-Foundation Trsts,LEARNING DIFFICULTIES,NORTHUMBERLAND TYNE AND WEAR NHS FOUNDATION TRUST,28087543,"68,705.92"
Department of Health,NHS Rotherham CCG,30/06/2019,Hlthcre-Foundation Trsts,LEARNING DIFFICULTIES,NORTHUMBERLAND TYNE AND WEAR NHS FOUNDATION TRUST,27856516,"66,489.60"
Department of Health,NHS Rotherham CCG,31/07/2019,Clinical&Medical-Commercial Sector,ACUTE COMMISSIONING,ONEHEALTH GROUP,28087547,"34,415.55"
Department of Health,NHS Rotherham CCG,31/07/2019,Oth Travel Costs-Patient Transport,PATIENT TRANSPORT,PREMIER CARE DIRECT LTD,27932956,"47,297.42"
Department of Health,NHS Rotherham CCG,31/07/2019,Hcare Srv Rec Fdtn Trust-Contract Baseline,LEARNING DIFFICULTIES,ROTHERHAM DONCASTER AND SOUTH HUMBER NHS FOUNDATION TRUST,28087598,"192,090.54"
Department of Health,NHS Rotherham CCG,31/07/2019,Hcare Srv Rec Fdtn Trust-Contract Baseline,MENTAL HEALTH CONTRACTS,ROTHERHAM DONCASTER AND SOUTH HUMBER NHS FOUNDATION TRUST,28087604,"2,407,575.00"
Department of Health,NHS Rotherham CCG,31/07/2019,Clinical&Medical-Voluntary Sector,HOSPICES,ROTHERHAM HOSPICE TRUST (THE),28087351,"1,727,365.00"
Department of Health,NHS Rotherham CCG,31/07/2019,Clinical&Medical-Voluntary Sector,HOSPICES,ROTHERHAM HOSPICE TRUST (THE),28087516,"-1,727,365.00"
Department of Health,NHS Rotherham CCG,31/07/2019,Clinical&Medical-Voluntary Sector,HOSPICES,ROTHERHAM HOSPICE TRUST (THE),28087521,"1,186,709.00"
Department of Health,NHS Rotherham CCG,31/07/2019,Cont Care- Children,CHC CHILDREN,ROTHERHAM METROPOLITAN BOROUGH COUNCIL,27913809,"25,029.00"
Department of Health,NHS Rotherham CCG,31/07/2019,Cont Care-FNC Client Continence Allow,FUNDED NURSING CARE,ROTHERHAM METROPOLITAN BOROUGH COUNCIL,27983412,"54,355.50"
Department of Health,NHS Rotherham CCG,31/07/2019,Cont Care-Funded Nursing Care Allow,FUNDED NURSING CARE,ROTHERHAM METROPOLITAN BOROUGH COUNCIL,27983412,"245,402.50"
Department of Health,NHS Rotherham CCG,31/07/2019,Social Care-Direct Payments,REABLEMENT,ROTHERHAM METROPOLITAN BOROUGH COUNCIL,28050996,"884,282.50"
Department of Health,NHS Rotherham CCG,31/07/2019,Clinical&Medical-Othe Public Sector,CARERS,ROTHERHAM METROPOLITAN BOROUGH COUNCIL,28051004,"150,000.00"
Department of Health,NHS Rotherham CCG,31/07/2019,Clinical&Medical-Othe Public Sector,INTERMEDIATE CARE,ROTHERHAM METROPOLITAN BOROUGH COUNCIL,28051013,"920,500.00"
Department of Health,NHS Rotherham CCG,31/07/2019,Social Care-Direct Payments,COMMISSIONING - NON ACUTE,ROTHERHAM METROPOLITAN BOROUGH COUNCIL,28051018,"269,347.75"
Department of Health,NHS Rotherham CCG,30/06/2019,Hcare Srv Rec Fdtn Trust-Contract Baseline,ACUTE COMMISSIONING,ROTHERHAM NHS FOUNDATION TRUST,27890454,"12,803,733.00"
Department of Health,NHS Rotherham CCG,30/06/2019,Hcare Srv Rec Fdtn Trust-Contract Baseline,COMMUNITY SERVICES,ROTHERHAM NHS FOUNDATION TRUST,27890454,"2,369,859.00"
Department of Health,NHS Rotherham CCG,30/06/2019,Hcare Srv Rec Fdtn Trust-Contract Baseline,ACUTE COMMISSIONING,SHEFFIELD CHILDRENS NHS FOUNDATION TRUST,27856156,"185,885.00"
Department of Health,NHS Rotherham CCG,31/07/2019,Hlthcre-Foundation Trsts,LEARNING DIFFICULTIES,SHEFFIELD HEALTH & SOCIAL CARE NHS FOUNDATION TRUST,27901003,"27,941.85"
Department of Health,NHS Rotherham CCG,30/06/2019,Hcare Srv Rec Fdtn Trust-Contract Baseline,ACUTE COMMISSIONING,SHEFFIELD TEACHING HOSPITALS NHS FOUNDATION TRUST,27843075,"1,849,863.00"
Department of Health,NHS Rotherham CCG,30/06/2019,Hcare Srv Rec Fdtn Trust-Contract Cost per Case,ACUTE COMMISSIONING,SHEFFIELD TEACHING HOSPITALS NHS FOUNDATION TRUST,27856367,"198,206.00"
Department of Health,NHS Rotherham CCG,31/07/2019,Clinical&Medical-Commercial Sector,NCAS/OATS,SPAMEDICA LTD,28104881,"58,967.90"
Department of Health,NHS Rotherham CCG,31/07/2019,C&M-PMS Contract Value,PRC DELEGATED CO-COMMISSIONING,NHS ROTHERHAM CCG GP PRACTICE,28019879,-40.11
Department of Health,NHS Rotherham CCG,31/07/2019,C&M-PMS GP Statutory Levy,PRC DELEGATED CO-COMMISSIONING,NHS ROTHERHAM CCG GP PRACTICE,28019879,-470.5
Department of Health,NHS Rotherham CCG,31/07/2019,C&M-PMS Out of Hours Opt Outs,PRC DELEGATED CO-COMMISSIONING,NHS ROTHERHAM CCG GP PRACTICE,28019879,"-5,980.50"
Department of Health,NHS Rotherham CCG,31/07/2019,C&M-PMS Voluntary Levy,PRC DELEGATED CO-COMMISSIONING,NHS ROTHERHAM CCG GP PRACTICE,28019879,-69.19
Department of Health,NHS Rotherham CCG,31/07/2019,ME-PMS GP Pension EEs Adjs - PMS,PRC DELEGATED CO-COMMISSIONING,NHS ROTHERHAM CCG GP PRACTICE,28019879,"-1,046.25"
Department of Health,NHS Rotherham CCG,31/07/2019,ME-PMS GP Pension EEs-PMS,PRC DELEGATED CO-COMMISSIONING,NHS ROTHERHAM CCG GP PRACTICE,28019879,"-9,732.08"
Department of Health,NHS Rotherham CCG,31/07/2019,ME-PMS GP Pension ERs Adjs - PMS,PRC DELEGATED CO-COMMISSIONING,NHS ROTHERHAM CCG GP PRACTICE,28019879,"-9,814.35"
Department of Health,NHS Rotherham CCG,31/07/2019,ME-PMS GP Prior Year EEs,PRC DELEGATED CO-COMMISSIONING,NHS ROTHERHAM CCG GP PRACTICE,28019879,"-1,617.75"
Department of Health,NHS Rotherham CCG,31/07/2019,C&M-PMS Contract Value,PRC DELEGATED CO-COMMISSIONING,NHS ROTHERHAM CCG GP PRACTICE,28019880,"127,835.30"
Department of Health,NHS Rotherham CCG,31/07/2019,C&M-PMS Out of Hours Opt Outs,PRC DELEGATED CO-COMMISSIONING,NHS ROTHERHAM CCG GP PRACTICE,28019880,1.89
Department of Health,NHS Rotherham CCG,31/07/2019,C&M-PMS PCN DES Participation,PRC DELEGATED CO-COMMISSIONING,NHS ROTHERHAM CCG GP PRACTICE,28019880,"7,296.78"
Department of Health,NHS Rotherham CCG,31/07/2019,C&M-PMS PCO Locum Adop/Pat/Mat,PRC DELEGATED CO-COMMISSIONING,NHS ROTHERHAM CCG GP PRACTICE,28019880,"7,906.08"
Department of Health,NHS Rotherham CCG,31/07/2019,C&M-PMS PCO Other,PRC DELEGATED CO-COMMISSIONING,NHS ROTHERHAM CCG GP PRACTICE,28019880,996.8
Department of Health,NHS Rotherham CCG,31/07/2019,C&M-PMS Prem Healthcentre Rent,PRC DELEGATED CO-COMMISSIONING,NHS ROTHERHAM CCG GP PRACTICE,28019880,397.97
Department of Health,NHS Rotherham CCG,31/07/2019,C&M-PMS QOF Aspiration,PRC DELEGATED CO-COMMISSIONING,NHS ROTHERHAM CCG GP PRACTICE,28019880,"13,089.33"
Department of Health,NHS Rotherham CCG,31/07/2019,Clinical&Medical-Voluntary Sector,COUNSELLING SERVICES,VOLUNTARY ACTION ROTHERHAM,28209026,"193,925.00"
Department of Health,NHS Rotherham CCG,31/07/2019,Hcare Srv Rec NHS Trust-Contract Baseline,AMBULANCE SERVICES,YORKSHIRE AMBULANCE SERVICE NHS TRUST,27964887,"719,948.00"
Department of Health,NHS Rotherham CCG,31/07/2019,Hcare Srv Rec NHS Trust-Contract Baseline,NHS 111,YORKSHIRE AMBULANCE SERVICE NHS TRUST,27964889,"66,286.17"
Department of Health,NHS Rotherham CCG,31/07/2019,Hcare Srv Rec NHS Trust-Contract Baseline,PATIENT TRANSPORT,YORKSHIRE AMBULANCE SERVICE NHS TRUST,27964890,"127,426.89"
,,,,,,,"29,832,759.22"
